Cogmind - Beta 13 X1 @@@ ROGUE MODE // 2023.10.19 @ 19:34:54 Player: Plexion Result: Destroyed by D-53 Grenadier with Mini Grenade Launcher Performance ------------- Evolutions (0) 0 Regions Visited (2) 400 Robots Destroyed (19) 95 Value Destroyed (460) 460 Prototype IDs (0) 0 Alien Tech Used (0) 0 Bonus (-941) -941 TOTAL SCORE: 14 Bonus ------- Follower Combat Kills 60 Friendly Fire -1001 Cogmind --------- Core Integrity 0/250 Matter 281/300 Energy 78/100 System Corruption 0% Temperature Cool (0) Movement Treading (160) Location -10/Mines Parts ------- > --- POWER (1) -------- (None) > --- PROPULSION (2) --- Light Treads > --- UTILITY (2) ------ Small Storage Unit > --- WEAPON (2) ------- Light Assault Rifle > --- INVENTORY (8) ---- Light Treads Light Treads Light Armor Plating Light Assault Rifle Grenade Launcher YI-UF0's Doublenader Peak State ------------ > --- POWER ------------ Light Ion Engine > --- PROPULSION ------- Light Treads Light Treads > --- UTILITY ---------- Improved Heat Sink Small Storage Unit > --- WEAPON ----------- Medium Laser Small Laser > --- INVENTORY -------- Light Ion Engine Heat Sink EM Pulse Gun Grenade Launcher [Rating: 9] Favorites ----------- Power Light Ion Engine Engine Light Ion Engine Propulsion Light Treads Treads Light Treads Utility Small Storage Unit Device Improved Heat Sink Storage Small Storage Unit Protection Light Armor Plating Weapon Small Laser Energy Gun Small Laser Ballistic Gun Assault Rifle Launcher Grenade Launcher Build | -11 -10 -10 ------- Run | Jun Mat Min Slots Evolved . | . . . Power . | . . . Propulsion . | . . . Utility . | . . . Weapon . | . . . Parts Attached 19 | 6 8 5 Power 3 | 1 2 . Engine 3 | 1 2 . Core . | . . . Reactor . | . . . Propulsion 3 | 2 . 1 Treads 3 | 2 . 1 Leg . | . . . Wheel . | . . . Hover . | . . . Flight . | . . . Utility 5 | 1 2 2 Device 3 | . 2 1 Storage 1 | 1 . . Processor . | . . . Hackware . | . . . Protection 1 | . . 1 Artifact . | . . . Weapon 8 | 2 4 2 Energy Gun 5 | 2 3 . Energy Cannon . | . . . Ballistic Gun 2 | . . 2 Ballistic Cannon . | . . . Launcher 1 | . 1 . Special Weapon . | . . . Impact Weapon . | . . . Slashing Weapon . | . . . Piercing Weapon . | . . . Special Melee Weapon . | . . . Unidentified Prototypes . | . . . Parts Lost 8 | . 1 7 Power 2 | . 1 1 Propulsion 2 | . . 2 Utility 2 | . . 2 Weapon 2 | . . 2 Highest Loss Streak 6 | . 1 6 To Critical Strikes . | . . . Average Slot Usage (%) 98 | . 97 99 Engine 13 | . 13 13 Treads 27 | . 28 27 Device 8 | . 12 1 Storage 14 | . 14 14 Protection 4 | . . 12 Energy Gun 24 | . 28 18 Ballistic Gun 3 | . . 9 Naked Turns . | . . . Heaviest Build 14 | 12 12 14 Greatest Support 40 | 40 40 40 Greatest Overweight (x) . | . . . Average Overweight (x) . | . . . Largest Inventory Capacity 8 | 8 8 8 Average Capacity 7 | 6 8 8 Most Carried 8 | 3 6 8 Average Carried 5 | 1 4 7 Final Capacity 8 | 8 8 8 Final Carried 6 | 2 6 6 Class Distribution -------------------- 100% | Mutant Dominant Class ---------------- Mutant | -10/Materials Mutant | -10/Mines Resources | -11 -10 -10 ----------- Run | Jun Mat Min Matter Collected 375 | 238 107 30 Remotely . | . . . Salvage Created 702 | . 480 222 Parts 37 | . 28 9 Haulers Intercepted 1 | . 1 . Recyclers Shooed 2 | . 2 . Parts Field Recycled . | . . . Retrieved Matter . | . . . Parts Self-Destructed . | . . . Prevented . | . . . Kills | -11 -10 -10 ------- Run | Jun Mat Min Combat Hostiles Destroyed 13 | . 11 2 Guns 10 | . 8 2 AOE 3 | . 3 . Classes Destroyed 7 | . 6 1 Worker 1 | . 1 . Tunneler 1 | . 1 . Hauler 1 | . 1 . Watcher 2 | . 2 . Swarmer 3 | . 3 . Grunt 8 | . 8 . Sentry 2 | . . 2 Best Kill Streak 4 | . 4 2 Combat Bots Only 3 | . 3 2 Max Kills in Single Turn 4 | . 4 1 Gunslinging . | . . . Exploded 3 | . 3 . Melee . | . . . Uniques/NPCs Destroyed 1 | . . 1 YI-UF0 (-10/Mines) Combat | -11 -10 -10 -------- Run | Jun Mat Min Damage Taken 1100 | . 493 607 Core 262 | . 131 131 Absorbed by Shields . | . . . Core Remaining (%) 100 | 100 . . Volleys Fired 73 | . 53 20 Largest 2 | . 2 2 Hottest 90 | . 90 90 Shots Fired 143 | . 103 40 Gun 142 | . 102 40 Cannon . | . . . Launcher 1 | . 1 . Special . | . . . Kinetic 5 | . . 5 Thermal 133 | . 98 35 Explosive 1 | . 1 . Electromagnetic 4 | . 4 . Robot Hit Streak 10 | . 10 10 Robot Miss Streak 4 | . 3 4 Penetration Max . | . . . Secondary Targets 1 | . 1 . Max Gunslinging Chain 1 | . 1 . Shots Hit Robots 95 | . 69 26 Core Hits 37 | . 26 11 Critical Kills . | . . . Critical Parts Destroyed . | . . . Critical Strikes 6 | . 5 1 Burn 6 | . 5 1 Melee Attacks . | . . . Impact . | . . . Slashing . | . . . Piercing . | . . . Sneak Attacks . | . . . Combat Hostiles . | . . . Follow-up Attacks . | . . . Damage Inflicted 1353 | . 1033 320 Guns 1180 | . 872 308 Cannons . | . . . Explosions 144 | . 144 . Melee . | . . . Ramming 29 | . 17 12 Kinetic 11 | . . 11 Thermal 1129 | . 832 297 Explosive 144 | . 144 . Electromagnetic 40 | . 40 . Impact . | . . . Slashing . | . . . Piercing . | . . . Highest Corruption . | . . . Average Corruption . | . . . Corruption Purged . | . . . Corruption Blocked . | . . . Overload Shots . | . . . Overflow Damage 16 | . 16 . Projectiles . | . . . Explosions 16 | . 16 . Melee . | . . . Knockbacks . | . . . Impact . | . . . Kinetic . | . . . Secondary . | . . . Self-Inflicted Damage 39 | . 39 . Shots 1 | . 1 . Rammed 6 | . 4 2 Targets Rammed 7 | . 5 2 Kicked . | . . . Crushed 1 | . 1 . Highest Temperature 310 | . 310 195 Average Temperature 74 | . 84 62 Received Heat Transfer 273 | . 228 45 Siege Activations . | . . . Robots Corrupted . | . . . Combat Hostiles . | . . . Parts Fried . | . . . Impact Corruptions . | . . . Robots Melted . | . . . Combat Hostiles . | . . . Parts Melted 6 | . 3 3 Heat Transferred 3345 | . 2502 843 Parts Sabotaged . | . . . Parts Stolen . | . . . Parts Stripped . | . . . Power Chain Reactions . | . . . Missiles Intercepted . | . . . Alert | -11 -10 -10 ------- Run | Jun Mat Min Peak Influence 241 | . 241 77 Initial 32 | . . 32 Average 71 | . 84 56 Maximum Alert Level 1 | . 1 . Low Security (%) 94 | 100 91 100 Level 1 5 | . 8 . Level 2 . | . . . Level 3 . | . . . Level 4 . | . . . Level 5 . | . . . High Security . | . . . Max Security . | . . . Squads Dispatched 1 | . 1 . Investigation 1 | . 1 . Extermination . | . . . Reinforcement . | . . . Assault . | . . . Garrison . | . . . Intercept . | . . . Searches Triggered . | . . . Construction Impeded . | . . . Haulers Reinforced . | . . . Active Scanning Responses . | . . . Cargo Convoy Interrupts . | . . . Stealth | -11 -10 -10 --------- Run | Jun Mat Min Distress Signals 2 | . 2 . Communications Jammed . | . . . Distress Signals . | . . . Times Spotted 27 | . 22 5 Peak Tracking Total 4 | . 4 2 Tactical Retreats 1 | . 1 . Traps | -11 -10 -10 ------- Run | Jun Mat Min Traps Triggered 1 | . 1 . Indirectly . | . . . Trap Hack Attempts . | . . . Triggered . | . . . Disarmed . | . . . Reprogrammed . | . . . Reused . | . . . Traps Extracted . | . . . Installed . | . . . Triggered . | . . . Machines | -11 -10 -10 ---------- Run | Jun Mat Min Machines Disabled . | . . . Max in Single Turn . | . . . Machines Repaired . | . . . Machines Sabotaged . | . . . Overloaded Fab Kills . | . . . Hacking | -11 -10 -10 --------- Run | Jun Mat Min Machines Accessed 3 | . 3 . Terminals 2 | . 2 . Fabricators . | . . . Repair Stations . | . . . Recycling Units 1 | . 1 . Scanalyzers . | . . . Garrison Access . | . . . Total Hacks 5 | . 5 . Successful 3 | . 3 . Failed 2 | . 2 . Catastrophic . | . . . Database Lockouts . | . . . Manual 5 | . 5 . Terminals 4 | . 4 . Fabricators . | . . . Repair Stations . | . . . Recycling Units 1 | . 1 . Scanalyzers . | . . . Garrison Access . | . . . Terminal Hacks 2 | . 2 . Robot Analysis 2 | . 2 . Fabricator Hacks . | . . . Repair Station Hacks . | . . . Recycling Unit Hacks . | . . . Scanalyzer . | . . . Garrison Access Hacks . | . . . Unauthorized Hacks 1 | . 1 . Terminals . | . . . Fabricators . | . . . Repair Stations . | . . . Recycling Units 1 | . 1 . Tunnel 1 | . 1 . Scanalyzers . | . . . Garrison Access . | . . . Data Cores Recovered . | . . . Used . | . . . Hacking Detections 2 | . 2 . Full Trace Events . | . . . Feedback Events . | . . . Feedback Blocked . | . . . Robot Schematics Acquired . | . . . Robots Built . | . . . Authchips . | . . . Time . | . . . Total Robot Build Rating . | . . . Part Schematics Acquired . | . . . Parts Built . | . . . Authchips . | . . . Time . | . . . Total Part Build Rating . | . . . Parts Repaired . | . . . Time . | . . . Parts Recycled . | . . . Recycled Matter . | . . . Retrieved Matter . | . . . Retrieved Components . | . . . Parts Scanalyzed . | . . . Part Schematics Acquired . | . . . Parts Damaged . | . . . Bothacking | -11 -10 -10 ------------ Run | Jun Mat Min Used RIF Installer . | . . . Robots Hacked . | . . . Non-combat . | . . . Combat . | . . . Robot Hacks Applied . | . . . Relay Couplers Released . | . . . Fabnet Peak Effective % . | . . . Robots Rewired . | . . . Allies Hacked . | . . . Hacks Repelled . | . . . Allies | -11 -10 -10 -------- Run | Jun Mat Min Total Allies 1 | . . 1 Largest Group 1 | . . 1 Highest-Rated Group 31 | . . 31 Highest-Rated Ally 31 | . . 31 Total Orders . | . . . Ally Attacks 7 | . . 7 Total Damage 106 | . . 106 Kills 2 | . . 2 Allies Corrupted . | . . . Allies Melted . | . . . Intel | -11 -10 -10 ------- Run | Jun Mat Min Robot Analysis Total 2 | . 2 . Derelict Logs Recovered 2 | . . 2 Drone Launches . | . . . Drone Recoveries . | . . . Exploration | -11 -10 -10 ------------- Run | Jun Mat Min Turns Passed 1639 | 80 1019 540 Spaces Moved 829 | 45 505 279 Core 2 | 2 . . Treads 827 | 43 505 279 Legs . | . . . Wheels . | . . . Hover . | . . . Flight . | . . . Fastest Speed 50 | 50 160 160 Average Speed 159 | 155 160 160 Slowest Speed 160 | 160 160 160 Overloaded Moves . | . . . Propulsion Burnouts . | . . . Robots Hopped . | . . . Cave-ins Triggered . | . . . Exploration Rate (%) 39 | 4 66 49 Regions Visited 2 Branch Regions 1 Pre-discovered Areas 2 | . 1 1 Known Exits Taken . | . . . Unknown Exits Taken 2 | 1 1 . Scrap Searched 2 | . . 2 Spaces Dug 4 | . 4 . Terrain Destroyed 4 | . 4 . Melee . | . . . Projectile . | . . . AOE 4 | . 4 . Terrain Rammed . | . . . Walls Destroyed . | . . . Machines Disabled . | . . . Actions | -11 -10 -10 --------- Run | Jun Mat Min Total 993 | 53 607 333 Wait 50 | . 33 17 Move 827 | 44 504 279 Hop . | . . . Pick Up 13 | 3 4 6 Fast Attach 9 | 5 3 1 Attach 6 | 1 1 4 Detach . | . . . Swap 4 | . 4 . Drop 4 | . . 4 Fire 73 | . 53 20 Melee . | . . . Ram . | . . . Kick . | . . . Crush 7 | . 5 2 Escape Stasis . | . . . Rewire . | . . . Trap . | . . . Miscellaneous . | . . . Route ------- -11/Junkyard -10/Materials (discovered 3 exits: [*Mat] / [*Min] / [*Sub]) -10/Mines (discovered 1 exit: [*Mat]) History --------- Turn | Location | Event 7 | -11/Junkyard | Discovered new exit (range 15) 81 | -11/Junkyard | Entered Materials 166 | -10/Materials | Discovered new exit (range 16) 306 | -10/Materials | Build established: Mutant 626 | -10/Materials | Discovered new exit (range 6) 726 | -10/Materials | Discovered new exit (range 15) 998 | -10/Materials | Core integrity fell below 50% 1100 | -10/Materials | Entered Mines 1203 | -10/Mines | Deemed a non-threat by the Exiles lab entrance 1231 | -10/Mines | YI-UF0 nonchalantly dropped a Grenade Launcher on the ground 1294 | -10/Mines | Destroyed YI-UF0 1302 | -10/Mines | Found Prototype Launcher 1360 | -10/Mines | Learned location of Mines (-9) 1362 | -10/Mines | Received a Mining Laser from a helpful Derelict 1488 | -10/Mines | Learned 2 Materials zone layouts 1495 | -10/Mines | Discovered new exit (range 5) 1569 | -10/Mines | Assembled infested the area 1640 | -10/Mines | Destroyed by D-53 Grenadier with Mini Grenade Launcher Last Messages --------------- 01459_ Searching scrap... 01459_ Found Heat Sink. 01459_ Found Assault Rifle. 01459_ Found 13 Matter. 01488_ Acquired derelict log, extracted data. Data stored: Materials zone layouts (x2). 01495_ EXIT=FOUND 01569_ ALERT: Infestation in the mines, dispatching Demolisher response squad. 01576_ Slammed into T-07 Excavator. 01598_ Slammed into R-06 Scavenger. 01613_ G-34 Mercenary destroyed. 01628_ YM-DLJ(g) destroyed. 01630_ Lgt. Treads destroyed. 01630_ Lgt. Ion Engine destroyed. 01632_ Lgt. Treads destroyed. 01634_ Lgt. Armor Plating destroyed. 01635_ Sml. Laser destroyed. 01638_ The unstable cave ceiling collapses. 01640_ Assault Rifle destroyed. Map ----- +----------------------------------------------------+ | ??????????????????????????????????????????????# | | ??????????????????????????????????????????????### | | ????????????????????????????????????????????????# | | ????????????????????????????????????????????????# | | ???????????????????????????????????????????###### | | ???????????????????????????????????????????# | | ???????????????????????????????????????????# | | ???????????????????????????????????????????# | | ???????????????????????????????????????????# | | ????????????????###????????????????????????# | | ???????????????? ????????????????????????# | | ????????????????# #???????????????????###### | | ????????????????# #???????????????????# | | ????????????????# #???????????????????# #### | | ????????????????# #???????????????????# #??# | | ???????????#????# #???????????????????# #??# | | ???????????# ?### #??????###??????????# #??# | | ??????????## ## ####### ##?????????# #??# ] | | ?????????## ## #?????????# #??# | | ?????##### r# ##????????# #??# | | ?? %# ##????????# #??# | | ?? d d #????????# #??# | | ??? !########## ## #######??# #??# | | ???? ???????????# ## =**%!#??# #??# | | ????????????????# ## ####=#### #??# | | ????????????????# ## @ #??# #??# | | ????????????????# ## #??######%#??####### | | ????????????????# ## #???????# #????????? | | ?????????######## ### #??????# #????????? | | ?????????# # #?## ##??????# #????????? | | ?????????# """ # #??#########???????# #????####? | | ?????????# """ # #??????????????????# #???## ## | | ?????????# """ # #?????????????###### #??## # | | ????###### # #????????????## ## #?## | | ????? # #???########## ### | | ?????????# < # #???# ### | | ?????????# #???# ######### ## #? | | ?????????# ####???# #???????### ## #? | | ?????????# #??????# #?????????## #### #? | | ?????????##### ##??????# #??????????## ##??# #? | | ?????????????# #???????# #???????????## #???# #? | | ?????????????# #???????# #?????????#### #???# #? | | ?????????????# #???????# #?????????# #???# #? | | ?????????????# #???????# #?????????# #???? ? | | ?????????????# #???????#!#????????## ####????###? | | ?????????????# #???????#%#????????# #??????????? | | ?????????????# #???????#[#???????# #??????????? | | ?????????????# ######??# #???????# | #??????????? | | ?????????????# #### #???????# #??????????? | | ?????????????###### #??????# ##??????????? | +----------------------------------------------------+ Best States ------------- Heat Dissipation 39 Energy Generation 10 Energy Capacity 125 Matter Stores 300 Matter Capacity 300 Sight Range 16 Terrain Scan Density 10 Armor Coverage 150 Evasion (%) 40 Recoil Reduction 2 Item Schematics ----------------- None Robot Schematics ------------------ None Fabricated ------------ Nothing Alien Tech Used ----------------- None Achievements -------------- None Challenges ------------ None Game ------ Seed SeismicWaveMicrothruster Manual? 0 Play Time 00:09:18 Cumulative 449.7 hours Start 2023.10.19 @ 19:27:39 End 2023.10.19 @ 19:34:54 Sessions 1 Manual Loads 0 Difficulty Rogue Special Mode None Game No. 521 Rogue 434 Adventurer 87 Explorer 0 Win Type - Total 25 Types 8/0/14/1/1/0/1/0/0 Lore% 89 Gallery% 92 Achievement% 76 Wizard Run 0 Options --------- ASCII 0 Keyboard 1 Movement Numpad Keybinds 0 Fullscreen 1 Font 18/SmallcapsGlow Map View 76x50 Tactical HUD 1 Map Filters NONE Filters NONE Steam 1 RUN: 49ba11bb-43c3-46ca-8057-48b59115c61f